[Event "Norwegian Team Championship 2019"]
[Site "Drammen"]
[Date "2019.05.31"]
[Round "2.14"]
[White "Nilsen, Tobias Lang"]
[Black "Breivik, Lars"]
[Result "0-1"]
[ECO "B08"]
[WhiteElo "1986"]
[BlackElo "2165"]
[Annotator "ChessBase"]
[PlyCount "146"]
[EventDate "2019.05.30"]
[EventType "swiss"]
[EventCountry "NOR"]
[SourceTitle "playchess.com"]
[Source "ChessBase"]
[SourceQuality "1"]
[TimeControl "40/5400:1800"]

1. e4 {[%emt 0:00:03]} g6 {[%emt 0:00:05]} 2. d4 {[%emt 0:00:31]} Bg7 {[%emt 0:00:06]} 3. Nf3 {[%emt 0:00:14]} d6 {[%emt 0:00:07]} 4. h3 {[%emt 0:00:18]} Nf6 {[%emt 0:00:18]} 5. Nc3 {[%emt 0:00:54]} O-O {[%emt 0:00:18]} 6. Be2 {[%emt 0:02:18]} Nc6 {[%emt 0:01:04]} 7. O-O {[%emt 0:00:20]} e5 {[%emt 0:00:08]} 8. dxe5 {[%emt 0:05:04]} Nxe5 {[%emt 0:01:07]} 9. Nxe5 {[%emt 0:00:30]} dxe5 {[%emt 0:00:08]} 10. Qxd8 {[%emt 0:00:19]} Rxd8 {[%emt 0:00:07]} 11. Bc4 {[%emt 0:00:17]} c6 {[%emt 0:00:23]} 12. Bb3 {[%emt 0:02:11]} Nd7 {[%emt 0:08:31]} 13. Be3 {[%emt 0:01:26]} Nf8 {[%emt 0:01:03]} 14. Rad1 {[%emt 0:00:55]} Re8 {[%emt 0:02:04]} 15. Rd2 {[%emt 0:10:18]} Ne6 {[%emt 0:01:15]} 16. Rfd1 {[%emt 0:01:09]} Nd4 {[%emt 0:01:38]} 17. Ne2 {[%emt 0:04:10]} Nxb3 {[%emt 0:00:21]} 18. axb3 {[%emt 0:00:08]} Be6 {[%emt 0:00:10]} 19. Nc1 {[%emt 0:00:27]} b6 {[%emt 0:03:06]} 20. Nd3 {[%emt 0:03:19]} Rac8 {[%emt 0:00:54]} 21. c4 {[%emt 0:08:32]} f6 {[%emt 0:02:27]} 22. Ra1 {[%emt 0:03:36]} Rc7 {[%emt 0:00:19]} 23. c5 {[%emt 0:00:14]} Bxb3 {[%emt 0:05:37]} 24. cxb6 {[%emt 0:00:27]} axb6 {[%emt 0:00:11]} 25. Bxb6 {[%emt 0:00:29]} Rd7 {[%emt 0:00:47]} 26. Be3 {[%emt 0:08:05]} Red8 {[%emt 0:00:42]} 27. Nc5 {[%emt 0:01:39]} Rxd2 {[%emt 0:01:53]} 28. Bxd2 {[%emt 0:00:13]} Rxd2 {[%emt 0:00:36]} 29. Ra8+ {[%emt 0:00:36]} Bf8 {[%emt 0:00:31]} 30. Nxb3 {[%emt 0:00:15]} Rxb2 {[%emt 0:00:18]} 31. Nc5 {[%emt 0:00:08]} Kf7 {[%emt 0:00:12]} 32. Ra7+ {[%emt 0:01:22]} Be7 {[%emt 0:05:16]} 33. Nb7 {[%emt 0:01:22]} Ke6 {[%emt 0:02:12]} 34. Na5 {[%emt 0:00:58]} Bc5 {[%emt 0:03:11]} 35. Ra6 {[%emt 0:02:18]} Bxf2+ {[%emt 0:00:49]} 36. Kf1 {[%emt 0:00:08]} Kd7 {[%emt 0:10:16]} 37. Nxc6 {[%emt 0:04:59]} Bb6 {[%emt 0:02:44]} 38. Na5 {[%emt 0:00:51]} Bxa5 {[%emt 0:01:17]} 39. Rxa5 {[%emt 0:00:06]} Rb4 {[%emt 0:00:08]} 40. Ra7+ {[%emt 0:02:56]} Ke6 {[%emt 0:00:08]} 41. Rxh7 {[%emt 0:30:46]} Rxe4 {[%emt 0:30:07]} 42. Ra7 {[%emt 0:00:11]} Rb4 {[%emt 0:00:18]} 43. Kf2 {[%emt 0:01:58]} Rb2+ {[%emt 0:00:11]} 44. Kf3 {[%emt 0:00:16]} Rb3+ {[%emt 0:00:06]} 45. Kf2 {[%emt 0:00:08]} Kf5 {[%emt 0:00:08]} 46. Ra4 {[%emt 0:00:31]} e4 {[%emt 0:03:16]} 47. g3 {[%emt 0:02:04]} Rf3+ {[%emt 0:00:12]} 48. Kg2 {[%emt 0:00:11]} Rd3 {[%emt 0:00:03]} 49. Ra5+ {[%emt 0:01:34]} Ke6 {[%emt 0:00:23]} 50. Kf2 {[%emt 0:00:07]} f5 {[%emt 0:01:04]} 51. h4 {[%emt 0:01:01]} Rd5 {[%emt 0:06:43]} 52. Ra6+ {[%emt 0:00:15]} Rd6 {[%emt 0:00:08]} 53. Ra3 {[%emt 0:00:39]} Kf6 {[%emt 0:01:29]} 54. Ra8 {[%emt 0:00:39]} Rd2+ {[%emt 0:00:40]} 55. Ke3 {[%emt 0:00:20]} Rg2 {[%emt 0:00:07]} 56. Ra6+ {[%emt 0:00:19]} Kg7 {[%emt 0:02:18]} 57. Kf4 {[%emt 0:00:14]} Kh6 {[%emt 0:00:16]} 58. Re6 {[%emt 0:04:11]} Kh5 {[%emt 0:03:04]} 59. Re8 {[%emt 0:00:00]} Rf2+ {[%emt 0:00:00]} 60. Ke5 {[%emt 0:00:00]} Kg4 {[%emt 0:00:00]} 61. Rg8 {[%emt 0:00:00]} Kxg3 {[%emt 0:00:00]} 62. h5 {[%emt 0:00:00]} e3 {[%emt 0:00:00]} 63. Rxg6+ {[%emt 0:00:00]} Kh4 {[%emt 0:00:00]} 64. Kd4 {[%emt 0:00:00]} e2 {[%emt 0:00:00]} 65. Re6 {[%emt 0:00:00]} Kxh5 {[%emt 0:00:00]} 66. Kd3 {[%emt 0:00:00]} Kg4 {[%emt 0:00:00]} 67. Kd2 {[%emt 0:00:00]} f4 {[%emt 0:00:00]} 68. Ke1 {[%emt 0:00:00]} Rh2 {[%emt 0:00:00]} 69. Re8 {[%emt 0:00:00]} f3 {[%emt 0:00:00]} 70. Rg8+ {[%emt 0:00:00]} Kf4 {[%emt 0:00:00]} 71. Rf8+ {[%emt 0:00:00]} Ke4 {[%emt 0:00:00]} 72. Re8+ {[%emt 0:00:00]} Kd5 {[%emt 0:00:00]} 73. Kd2 {[%emt 0:00:00]} Rh1 {[%emt 0:00:00]} 0-1

[Event "Norwegian Team Championship 2019"]
[Site "Drammen"]
[Date "2019.05.31"]
[Round "2.15"]
[White "Eriksen, Terje"]
[Black "Kristiansen, Rune Harald"]
[Result "0-1"]
[ECO "A10"]
[WhiteElo "2145"]
[BlackElo "1872"]
[Annotator "ChessBase"]
[PlyCount "56"]
[EventDate "2019.05.30"]
[EventType "swiss"]
[EventCountry "NOR"]
[SourceTitle "playchess.com"]
[Source "ChessBase"]
[SourceQuality "1"]
[TimeControl "40/5400:1800"]

1. c4 {[%emt 0:00:05]} e6 {[%emt 0:00:33]} 2. g3 {[%emt 0:00:16]} f5 {[%emt 0:01:59]} 3. Bg2 {[%emt 0:00:06]} Nf6 {[%emt 0:00:14]} 4. Nf3 {[%emt 0:00:28]} d6 {[%emt 0:00:35]} 5. Nc3 {[%emt 0:01:12]} Be7 {[%emt 0:00:58]} 6. d3 {[%emt 0:01:57]} O-O {[%emt 0:01:25]} 7. O-O {[%emt 0:00:24]} Nc6 {[%emt 0:01:27]} 8. e4 {[%emt 0:10:14]} e5 {[%emt 0:03:26]} 9. Nd5 {[%emt 0:04:34]} fxe4 {[%emt 0:03:48]} 10. Nxf6+ {[%emt 0:04:47]} Bxf6 {[%emt 0:07:03]} 11. dxe4 {[%emt 0:00:08]} Be6 {[%emt 0:07:08]} 12. Qd3 {[%emt 0:05:39]} Qe7 {[%emt 0:05:27]} 13. Bd2 {[%emt 0:04:14]} a5 {[%emt 0:01:05]} 14. Bc3 {[%emt 0:02:54]} b6 {[%emt 0:01:58]} 15. b3 {[%emt 0:01:45]} g5 {[%emt 0:09:54]} 16. Ne1 {[%emt 0:02:28]} Qg7 {[%emt 0:02:03]} 17. Nc2 {[%emt 0:01:49]} g4 {[%emt 0:05:05]} 18. f3 {[%emt 0:03:33]} gxf3 {[%emt 0:00:17]} 19. Rxf3 {[%emt 0:04:10]} Nd4 {[%emt 0:01:32]} 20. Rf2 {[%emt 0:04:20]} Nxc2 {[%emt 0:02:14]} 21. Rxc2 {[%emt 0:02:49]} Bg5 {[%emt 0:06:34]} 22. a3 {[%emt 0:03:47]} Qh6 {[%emt 0:04:54]} 23. Re1 {[%emt 0:02:36]} Rf7 {[%emt 0:01:34]} 24. Bb2 {[%emt 0:04:46]} Raf8 {[%emt 0:01:23]} 25. b4 {[%emt 0:00:51]} axb4 {[%emt 0:01:07]} 26. axb4 {[%emt 0:00:01]} Bh3 {[%emt 0:02:15]} 27. c5 {[%emt 0:02:42]} Be3+ {[%emt 0:00:53]} 28. Rxe3 {[%emt 0:06:17]} Qxe3+ {[%emt 0:02:13]} 0-1

[Event "Norwegian Team Championship 2019"]
[Site "Drammen"]
[Date "2019.05.31"]
[Round "2.16"]
[White "Johansen, Arnstein"]
[Black "Ludvigsen, Frode"]
[Result "0-1"]
[ECO "A37"]
[WhiteElo "1740"]
[BlackElo "2064"]
[Annotator "NA"]
[PlyCount "66"]
[EventDate "2019.05.30"]
[EventType "swiss"]
[EventCountry "NOR"]
[SourceTitle "playchess.com"]
[Source "ChessBase"]
[SourceQuality "1"]
[TimeControl "40/5400:1800"]

1. c4 {[%emt 0:00:04]} e6 {[%emt 0:00:59]} 2. g3 {[%emt 0:01:15]} c5 {[%emt 0:02:58]} 3. Bg2 {[%emt 0:03:39]} Nc6 {[%emt 0:01:06]} 4. Nc3 {[%emt 0:01:29]} g6 {[%emt 0:09:01]} 5. Nf3 {[%emt 0:01:37]} Bg7 {[%emt 0:00:08]} 6. O-O {[%emt 0:00:53]} Nge7 {[%emt 0:02:51]} 7. a3 {[%emt 0:04:38]} d5 {[%emt 0:04:40]} 8. d3 {[%emt 0:06:23]} O-O {[%emt 0:06:43]} 9. Rb1 {[%emt 0:04:45] A37: Symmetrical English vs ...g6: 4 Bg2 Bg7 5 Nf3} b6 {[%emt 0:04:27]} 10. Bd2 {[%emt 0:10:42]} d4 {[%emt 0:09:59]} (10... Bb7 11. cxd5 Nxd5 12. Ne4 a5 13. h4 Rc8 14. h5 Nd4 15. hxg6 hxg6 16. Nh4 Qd7 17. g4 e5 18. e3 Ne6 19. Qe2 Rcd8 {0-1 (52) Tsydypov,Z (2529)-Paravyan,D (2634) Khanty-Mansiysk 2018}) 11. Na2 {[%emt 0:00:26]} Bb7 {[%emt 0:09:00]} 12. b4 {[%emt 0:01:16]} cxb4 {[%emt 0:01:29]} 13. Nxb4 $146 {[%emt 0:00:30]} ({Predecessor:} 13. axb4 Qc7 14. b5 Nb8 15. Bb4 Re8 16. Bxe7 Rxe7 {1-0 (46) Zabystrzan,P (2267)-Kanakova,N (2105) Ostrava 2016}) 13... Rc8 {[%emt 0:05:22]} 14. Qc1 {[%emt 0:12:51]} b5 {[%emt 0:07:32]} 15. Nxc6 {[%emt 0:02:41]} Bxc6 {[%emt 0:00:15]} 16. Bh6 {[%emt 0:00:41]} Bxh6 {[%emt 0:07:02]} 17. Qxh6 {[%emt 0:00:09]} Nf5 {[%emt 0:00:05]} 18. Qf4 {[%emt 0:04:26]} bxc4 {[%emt 0:00:17]} 19. dxc4 {[%emt 0:01:09]} f6 {[%emt 0:02:47]} 20. Rfd1 {[%emt 0:11:09]} e5 {[%emt 0:01:11]} 21. Qd2 {[%emt 0:01:12]} Be4 {[%emt 0:00:51]} 22. Rbc1 {[%emt 0:02:26]} Qb6 {[%emt 0:02:40]} 23. Qb4 {[%emt 0:01:34]} Qa6 {[%emt 0:00:43]} 24. Nd2 {[%emt 0:02:41]} Rb8 {[%emt 0:01:03]} 25. Bxe4 {[%emt 0:04:07]} Rxb4 {[%emt 0:00:02]} 26. axb4 $11 {[%emt 0:00:18]} Ne7 {[%emt 0:01:14]} 27. Ra1 {[%emt 0:00:16]} Qb6 {[%emt 0:00:03]} 28. c5 {[%emt 0:00:26]} Qxb4 {[%emt 0:00:08]} 29. Rxa7 {[%emt 0:00:10]} Qxc5 {[%emt 0:00:06]} 30. Rda1 {[%emt 0:00:54]} f5 {[%emt 0:00:27]} 31. Bd3 {[%emt 0:00:11]} Rc8 {[%emt 0:01:41]} 32. R7a5 {[%emt 0:00:25]} Qc3 {[%emt 0:00:35]} 33. Rxe5 {[%emt 0:01:05]} Qxa1+ {[%emt 0:00:13]} 0-1

[Event "Norwegian Team Championship 2019"]
[Site "Drammen"]
[Date "2019.05.31"]
[Round "2.17"]
[White "Unneland, Mathias"]
[Black "Haug, Johannes"]
[Result "0-1"]
[ECO "A57"]
[WhiteElo "2009"]
[BlackElo "2438"]
[Annotator "ChessBase"]
[PlyCount "126"]
[EventDate "2019.05.30"]
[EventType "swiss"]
[EventCountry "NOR"]
[SourceTitle "playchess.com"]
[Source "ChessBase"]
[SourceQuality "1"]
[TimeControl "40/5400:1800"]

1. d4 {[%emt 0:00:02]} Nf6 {[%emt 0:00:02]} 2. c4 {[%emt 0:00:08]} c5 {[%emt 0:00:03]} 3. d5 {[%emt 0:00:07]} b5 {[%emt 0:00:12]} 4. cxb5 {[%emt 0:00:08]} a6 {[%emt 0:00:11]} 5. b6 {[%emt 0:00:16]} d6 {[%emt 0:00:25]} 6. e4 {[%emt 0:00:44]} Nbd7 {[%emt 0:00:16]} 7. Nc3 {[%emt 0:00:15]} g6 {[%emt 0:00:19]} 8. Nf3 {[%emt 0:00:32]} Bg7 {[%emt 0:00:57]} 9. Be2 {[%emt 0:00:32]} O-O {[%emt 0:00:10]} 10. O-O {[%emt 0:00:52]} Rb8 {[%emt 0:00:02]} 11. h3 {[%emt 0:01:09]} Nxb6 {[%emt 0:02:36]} 12. a4 {[%emt 0:01:35]} Ne8 {[%emt 0:00:13]} 13. Nd2 {[%emt 0:05:18]} Nc7 {[%emt 0:10:50]} 14. a5 {[%emt 0:08:36]} Nd7 {[%emt 0:04:48]} 15. Nc4 {[%emt 0:11:15]} Nb5 {[%emt 0:00:44]} 16. Na4 {[%emt 0:05:13]} f5 {[%emt 0:16:21]} 17. exf5 {[%emt 0:06:46]} gxf5 {[%emt 0:00:38]} 18. Bf4 {[%emt 0:01:46]} Bb7 {[%emt 0:09:38]} 19. Rb1 {[%emt 0:02:15]} Nd4 {[%emt 0:09:45]} 20. Nab6 {[%emt 0:02:03]} Nf6 {[%emt 0:02:47]} 21. Ne3 {[%emt 0:02:27]} Qe8 {[%emt 0:00:49]} 22. b4 {[%emt 0:18:26]} Nxe2+ {[%emt 0:13:54]} 23. Qxe2 {[%emt 0:00:11]} Nh5 {[%emt 0:01:08]} 24. Qc4 {[%emt 0:02:38]} Bd4 {[%emt 0:04:44]} 25. Bh2 {[%emt 0:03:06]} f4 {[%emt 0:04:31]} 26. bxc5 {[%emt 0:00:33]} Bxc5 {[%emt 0:00:16]} 27. Ng4 {[%emt 0:00:25]} Kh8 {[%emt 0:00:01]} 28. Qc3+ {[%emt 0:00:19]} Ng7 {[%emt 0:00:06]} 29. Qc4 {[%emt 0:02:05]} h5 {[%emt 0:00:56]} 30. Nh6 {[%emt 0:00:33]} f3 {[%emt 0:00:01]} 31. g4 {[%emt 0:01:06]} Qg6 {[%emt 0:00:01]} 32. Bf4 {[%emt 0:00:13]} Rbd8 {[%emt 0:00:00]} 33. Rfe1 {[%emt 0:02:39]} hxg4 {[%emt 0:00:20]} 34. Nxg4 {[%emt 0:00:25]} Bc8 {[%emt 0:00:05]} 35. Nxc8 {[%emt 0:00:30]} Rxc8 {[%emt 0:00:02]} 36. Qe4 {[%emt 0:00:17]} Qxe4 {[%emt 0:00:40]} 37. Rxe4 {[%emt 0:00:02]} Nf5 {[%emt 0:00:15]} 38. Rb7 {[%emt 0:01:41]} Rb8 {[%emt 0:00:23]} 39. Rxb8 {[%emt 0:00:43]} Rxb8 {[%emt 0:00:01]} 40. Bg5 {[%emt 0:00:36]} Rb1+ {[%emt 0:00:29]} 41. Kh2 {[%emt 0:30:06]} Kg7 {[%emt 0:15:16]} 42. Ne3 {[%emt 0:00:00]} Bxe3 {[%emt 0:02:38]} 43. Bxe3 {[%emt 0:00:00]} Rd1 {[%emt 0:04:23]} 44. Bb6 {[%emt 0:00:00]} Kf6 {[%emt 0:01:06]} 45. Rc4 {[%emt 0:00:00]} Rxd5 {[%emt 0:00:15]} 46. Rc8 {[%emt 0:00:00]} Rd2 {[%emt 0:01:08]} 47. Ra8 {[%emt 0:00:00]} e5 {[%emt 0:00:15]} 48. Rxa6 {[%emt 0:00:00]} e4 {[%emt 0:00:13]} 49. Ra8 {[%emt 0:00:00]} e3 {[%emt 0:00:58]} 50. Bxe3 {[%emt 0:00:00]} Nxe3 {[%emt 0:00:05]} 51. Kg3 {[%emt 0:00:00]} Nf5+ {[%emt 0:00:05]} 52. Kxf3 {[%emt 0:00:00]} Rd3+ {[%emt 0:00:00]} 53. Ke4 {[%emt 0:00:00]} Rd4+ {[%emt 0:00:04]} 54. Kf3 {[%emt 0:00:00]} Ra4 {[%emt 0:00:02]} 55. a6 {[%emt 0:00:00]} Nd4+ {[%emt 0:00:19]} 56. Ke4 {[%emt 0:00:00]} Ke6 {[%emt 0:00:01]} 57. h4 {[%emt 0:00:00]} Nc6+ {[%emt 0:00:00]} 58. Ke3 {[%emt 0:00:00]} Ke5 {[%emt 0:00:24]} 59. h5 {[%emt 0:00:32]} Ra3+ 60. Kd2 {[%emt 0:00:00]} Rh3 {[%emt 0:00:14]} 61. a7 {[%emt 0:00:00]} Kd5 {[%emt 0:00:02]} 62. f4 {[%emt 0:00:00]} Rxh5 {[%emt 0:00:01]} 63. Rb8 {[%emt 0:00:00]} Nxa7 {[%emt 0:00:02]} 0-1

[Event "Norwegian Team Championship 2019"]
[Site "Drammen"]
[Date "2019.05.31"]
[Round "2.18"]
[White "Tryggestad, Andreas Garberg"]
[Black "Hausken, Andreas Skrede"]
[Result "1-0"]
[ECO "E15"]
[WhiteElo "2324"]
[BlackElo "1799"]
[Annotator "ChessBase"]
[PlyCount "81"]
[EventDate "2019.05.30"]
[EventType "swiss"]
[EventCountry "NOR"]
[SourceTitle "playchess.com"]
[Source "ChessBase"]
[SourceQuality "1"]
[TimeControl "40/5400:1800"]

1. d4 {[%emt 0:00:02]} Nf6 {[%emt 0:00:07]} 2. c4 {[%emt 0:00:05]} e6 {[%emt 0:00:08]} 3. Nf3 {[%emt 0:00:04]} b6 {[%emt 0:00:05]} 4. g3 {[%emt 0:00:04]} Ba6 {[%emt 0:00:09]} 5. b3 {[%emt 0:00:06]} Bb4+ {[%emt 0:00:18]} 6. Bd2 {[%emt 0:00:09]} Be7 {[%emt 0:00:08]} 7. Bc3 {[%emt 0:00:21]} c6 {[%emt 0:00:14]} 8. Nbd2 {[%emt 0:00:08]} d5 {[%emt 0:00:08]} 9. Bg2 {[%emt 0:00:05]} O-O {[%emt 0:00:10]} 10. O-O {[%emt 0:00:04]} Nbd7 {[%emt 0:00:22]} 11. Ne5 {[%emt 0:00:57]} Bb7 {[%emt 0:03:55]} 12. e4 {[%emt 0:11:25]} dxe4 {[%emt 0:09:33]} 13. Nxe4 {[%emt 0:01:00]} Qc7 {[%emt 0:00:58]} 14. Qf3 {[%emt 0:01:35]} Rac8 {[%emt 0:06:31]} 15. Rad1 {[%emt 0:00:27]} Ba8 {[%emt 0:04:10]} 16. Qe2 {[%emt 0:23:38]} Nxe4 {[%emt 0:16:21]} 17. Bxe4 {[%emt 0:00:32]} Nf6 {[%emt 0:00:14]} 18. Bg2 {[%emt 0:01:13]} Rfd8 {[%emt 0:00:29]} 19. Nd3 {[%emt 0:14:12]} Nd7 {[%emt 0:08:38]} 20. Bd2 {[%emt 0:09:14]} Bd6 {[%emt 0:05:20]} 21. b4 {[%emt 0:04:10]} c5 {[%emt 0:00:40]} 22. Bxa8 {[%emt 0:02:12]} Rxa8 {[%emt 0:00:07]} 23. dxc5 {[%emt 0:00:06]} bxc5 {[%emt 0:00:12]} 24. b5 {[%emt 0:00:04]} a6 {[%emt 0:02:20]} 25. Bc3 {[%emt 0:04:07]} Nb6 {[%emt 0:02:15]} 26. Qg4 {[%emt 0:06:31]} f5 {[%emt 0:02:23]} 27. Qe2 {[%emt 0:00:03]} Nxc4 {[%emt 0:00:32]} 28. bxa6 {[%emt 0:02:43]} Rxa6 {[%emt 0:00:26]} 29. Nf4 {[%emt 0:00:56]} Bxf4 {[%emt 0:15:04]} 30. Rxd8+ {[%emt 0:00:02]} Qxd8 {[%emt 0:00:06]} 31. Qxc4 {[%emt 0:00:02]} Ra3 {[%emt 0:00:49]} 32. gxf4 {[%emt 0:00:04]} Qd5 {[%emt 0:00:06]} 33. Qxd5 {[%emt 0:01:38]} exd5 {[%emt 0:00:02]} 34. Be5 {[%emt 0:00:05]} Rxa2 {[%emt 0:02:44]} 35. Rb1 {[%emt 0:00:01]} d4 {[%emt 0:00:37]} 36. Rb7 {[%emt 0:00:27]} Rc2 {[%emt 0:00:32]} 37. Rd7 {[%emt 0:00:24]} Rc3 {[%emt 0:00:30]} 38. Bxg7 {[%emt 0:00:12]} Rb3 {[%emt 0:00:25]} 39. Bh6 {[%emt 0:00:18]} d3 {[%emt 0:00:24]} 40. Kg2 {[%emt 0:00:20]} Rb2 {[%emt 0:00:16]} 41. Rxd3 {[%emt 0:30:10]} 1-0

[Event "Norwegian Team Championship 2019"]
[Site "Drammen"]
[Date "2019.05.31"]
[Round "2.19"]
[White "Gaustad, Erlend"]
[Black "Nordquelle, Daniel"]
[Result "0-1"]
[ECO "D30"]
[WhiteElo "1906"]
[BlackElo "2080"]
[Annotator "NA"]
[PlyCount "206"]
[EventDate "2019.05.30"]
[EventType "swiss"]
[EventCountry "NOR"]
[SourceTitle "playchess.com"]
[Source "ChessBase"]
[SourceQuality "1"]
[TimeControl "40/5400:1800"]

1. Nf3 {[%emt 0:00:05]} d5 {[%emt 0:00:15]} 2. d4 {[%emt 0:00:17]} e6 {[%emt 0:01:15]} 3. c4 {[%emt 0:00:57]} c6 {[%emt 0:00:18]} 4. Qc2 {[%emt 0:00:50]} Nd7 {[%emt 0:00:47]} 5. g3 {[%emt 0:02:29]} Bd6 {[%emt 0:01:52]} (5... dxc4 6. Nbd2 b5 7. b3 cxb3 8. Qxc6 Rb8 9. axb3 Bb7 10. Qc2 Qb6 11. Bg2 Ngf6 12. O-O Bb4 13. Ba3 Bxa3 14. Rxa3 {½-½ (68) Ulybin,M (2482)-Krasenkow,M (2630) Groningen 2018}) 6. Bg2 {[%emt 0:01:56] D30: Queen's Gambit Declined: Systems without Nc3} f5 {[%emt 0:02:49]} 7. b3 {[%emt 0:07:14]} Ngf6 {[%emt 0:01:25]} 8. Bb2 {[%emt 0:04:29]} Qe7 {[%emt 0:02:05]} 9. e3 $146 {[%emt 0:04:48]} ({Predecessor:} 9. Nbd2 O-O 10. O-O f4 11. Ne5 fxg3 12. hxg3 Bxe5 13. dxe5 {1-0 (26) Le,H (2042)-Lu,C (2229) Ho Chi Minh City 2015}) 9... O-O {[%emt 0:18:33]} 10. O-O {[%emt 0:01:58]} b6 {[%emt 0:03:44]} 11. Nbd2 {[%emt 0:12:42]} a5 {[%emt 0:06:47]} 12. a3 {[%emt 0:04:43]} Ba6 {[%emt 0:02:20]} 13. Rfc1 {[%emt 0:04:52]} Rfc8 {[%emt 0:03:39]} 14. Qd1 {[%emt 0:01:41]} Ne4 {[%emt 0:07:36]} 15. Bf1 {[%emt 0:05:27]} Bb7 {[%emt 0:01:08]} 16. Rc2 {[%emt 0:04:53]} Ndf6 {[%emt 0:05:35]} 17. a4 {[%emt 0:03:54]} Rf8 {[%emt 0:04:42]} 18. Rac1 {[%emt 0:01:44]} Bb4 {[%emt 0:03:31]} 19. Nxe4 {[%emt 0:02:20]} Nxe4 {[%emt 0:00:04]} 20. Ne5 {[%emt 0:01:05]} c5 {[%emt 0:05:23]} 21. cxd5 {[%emt 0:04:34]} exd5 {[%emt 0:00:05]} 22. Bb5 {[%emt 0:00:50]} Qe6 {[%emt 0:02:30]} 23. Qe2 {[%emt 0:02:25]} Rad8 {[%emt 0:02:02]} 24. Rd1 {[%emt 0:02:52]} Rd6 {[%emt 0:01:44]} 25. Kg2 {[%emt 0:01:59]} Qe7 {[%emt 0:00:11]} 26. f3 {[%emt 0:00:45]} Ng5 {[%emt 0:00:01]} 27. Qf2 {[%emt 0:02:31]} Rc8 {[%emt 0:02:24]} 28. Rdc1 {[%emt 0:00:13]} Rdd8 {[%emt 0:00:19]} 29. h4 {[%emt 0:00:47]} Nf7 {[%emt 0:00:54]} 30. Nd3 {[%emt 0:00:51]} Nd6 {[%emt 0:00:54]} 31. Nxb4 {[%emt 0:00:58]} cxb4 {[%emt 0:00:40]} 32. Bd3 {[%emt 0:00:39]} g6 {[%emt 0:00:15]} 33. Rxc8 {[%emt 0:00:15]} Bxc8 {[%emt 0:00:23]} 34. Rc2 {[%emt 0:00:21]} Bb7 {[%emt 0:00:17]} 35. Bc1 {[%emt 0:00:14]} Rd7 {[%emt 0:00:16]} 36. Qe2 {[%emt 0:00:16]} Kf7 {[%emt 0:01:07]} 37. Bd2 {[%emt 0:00:15]} h6 {[%emt 0:00:56]} 38. Rc1 {[%emt 0:00:06]} Kg7 {[%emt 0:00:20]} 39. Rc2 {[%emt 0:00:16]} g5 {[%emt 0:00:14]} 40. hxg5 {[%emt 0:00:05]} hxg5 {[%emt 0:00:05]} 41. Bb5 {[%emt 0:30:17]} Rd8 {[%emt 0:01:30]} 42. Rc1 {[%emt 0:00:00]} Rc8 {[%emt 0:08:01]} 43. Bd3 {[%emt 0:00:00]} Qe6 {[%emt 0:03:39]} 44. Rh1 {[%emt 0:00:00]} Rh8 {[%emt 0:04:13]} 45. Rxh8 {[%emt 0:00:00]} Kxh8 {[%emt 0:00:01]} 46. Qd1 {[%emt 0:00:00]} Kg7 {[%emt 0:00:32]} 47. Qh1 {[%emt 0:00:00]} Bc6 {[%emt 0:02:06]} 48. Qc1 {[%emt 0:00:00]} Qe8 {[%emt 0:00:34]} 49. Qh1 {[%emt 0:00:00]} Bd7 {[%emt 0:00:58]} 50. Qc1 {[%emt 0:00:00]} Qd8 {[%emt 0:00:01]} 51. Qh1 {[%emt 0:00:00]} Be8 {[%emt 0:00:08]} 52. Qc1 {[%emt 0:00:00]} Qd7 {[%emt 0:00:05]} 53. Qc2 {[%emt 0:00:00]} Bf7 {[%emt 0:01:28]} 54. Qc1 {[%emt 0:00:00]} g4 {[%emt 0:00:14]} 55. Qd1 {[%emt 0:00:00]} Bh5 {[%emt 0:00:35]} 56. Be2 {[%emt 0:00:00]} (56. f4 $15) 56... Nf7 $2 {[%emt 0:00:46]} (56... gxf3+ $19 57. Bxf3 Bxf3+ 58. Qxf3 Ne4) 57. f4 {[%emt 0:00:00]} Nd6 {[%emt 0:00:09]} 58. Qh1 {[%emt 0:00:00]} Bf7 {[%emt 0:00:27]} 59. Qh4 {[%emt 0:00:00]} Ne4 {[%emt 0:00:07]} 60. Be1 {[%emt 0:00:00]} Qc7 {[%emt 0:00:07]} (60... Qc6 $5 61. Bd3 $8 Qf6 $11) 61. Bd3 {[%emt 0:00:00]} Bg6 {[%emt 0:00:23]} 62. Bxe4 {[%emt 0:00:00]} dxe4 {[%emt 0:00:01]} 63. Qg5 {[%emt 0:00:00]} Qc2+ {[%emt 0:00:31]} (63... Qd6 $17 64. Bd2 Qf6) 64. Bf2 {[%emt 0:00:00]} Qxb3 {[%emt 0:00:07]} 65. Qe7+ {[%emt 0:00:00]} Qf7 {[%emt 0:00:09]} 66. Qe5+ {[%emt 0:00:00]} Qf6 {[%emt 0:00:03]} 67. Qc7+ {[%emt 0:00:00]} Bf7 {[%emt 0:00:01]} 68. d5 $1 {[%emt 0:00:00]} b3 {[%emt 0:01:06]} 69. d6 {[%emt 0:00:00]} b2 {[%emt 0:00:02]} 70. d7 {[%emt 0:00:00]} b1=Q {[%emt 0:00:13]} 71. d8=Q {[%emt 0:00:00]} Qxd8 {[%emt 0:00:24]} 72. Qxd8 {[%emt 0:00:00]} Qb4 {[%emt 0:00:10]} 73. Qg5+ {[%emt 0:00:00]} Bg6 {[%emt 0:00:00]} 74. Qd8 {[%emt 0:00:00]} Qc5 {[%emt 0:00:15]} 75. Qd7+ {[%emt 0:00:00]} Bf7 {[%emt 0:00:01]} 76. Qd8 {[%emt 0:00:00]} Qc6 {[%emt 0:00:06]} 77. Qg5+ {[%emt 0:00:00]} Qg6 {[%emt 0:00:06]} 78. Qd8 {[%emt 0:00:00]} Qf6 {[%emt 0:00:04]} 79. Qd7 {[%emt 0:00:00]} Kg6 {[%emt 0:00:04]} 80. Qc7 {[%emt 0:00:00]} Be8 {[%emt 0:00:04]} 81. Qc4 {[%emt 0:00:00]} Qf7 {[%emt 0:00:14]} 82. Qd4 {[%emt 0:00:00]} Qe6 {[%emt 0:00:03]} 83. Be1 {[%emt 0:00:00]} Qa2+ {[%emt 0:00:04]} 84. Bd2 {[%emt 0:00:00]} Qe6 {[%emt 0:00:06]} 85. Bc3 {[%emt 0:00:00]} Qf7 {[%emt 0:00:05]} 86. Qe5 {[%emt 0:00:00]} Bxa4 {[%emt 0:00:02]} 87. Qd6+ {[%emt 0:00:00]} Kh7 {[%emt 0:00:03]} 88. Qxb6 {[%emt 0:00:00]} Bd7 $11 {[%emt 0:00:11]} 89. Qxa5 {[%emt 0:00:00]} Qe6 {[%emt 0:00:02]} 90. Qa8 {[%emt 0:00:00]} Kg6 {[%emt 0:00:00]} 91. Qh8 {[%emt 0:00:00]} Kf7 {[%emt 0:00:01]} 92. Qg7+ {[%emt 0:00:00]} Ke8 {[%emt 0:00:01]} 93. Qh8+ {[%emt 0:00:00]} Ke7 {[%emt 0:00:00]} 94. Qg7+ {[%emt 0:00:00]} Kd6 {[%emt 0:00:01]} 95. Qd4+ {[%emt 0:00:00]} Kc6 {[%emt 0:00:00]} 96. Qa4+ {[%emt 0:00:00]} Kc7 {[%emt 0:00:01]} 97. Ba5+ {[%emt 0:00:00]} Kb7 {[%emt 0:00:01]} 98. Qb4+ {[%emt 0:00:00]} Ka6 {[%emt 0:00:01]} 99. Qa3 {[%emt 0:00:02]} Qc6 {[%emt 0:00:02]} 100. Bb4+ {[%emt 0:00:01]} Kb7 {[%emt 0:00:01]} 101. Qa5 {[%emt 0:00:02]} Qb6 {[%emt 0:00:00]} 102. Qe5 {[%emt 0:00:01]} Qxb4 {[%emt 0:00:01]} 103. Qd5+ Bc6 0-1